fUSD/lending_fUSD_20251026
["ID","MTS","AMOUNT","RATE_DAILY","PERIOD"]
[392441019,1761475884992,-158.0,0.00600001,120]
[392441020,1761475885002,-944.44444444,0.00602,120]
[392441021,1761475885012,-500.0,0.0060274,120]
[392441022,1761475885020,-2017.29214248,0.0060386,120]
[392441023,1761475885030,-150.0,0.00606252,120]
[392441024,1761475885039,-944.44444444,0.00607,120]
[392441025,1761475885048,-500.0,0.00608219,120]
[392441026,1761475885057,-944.44444444,0.00612,120]
[392441027,1761475885066,-500.0,0.00613699,120]
[392441028,1761475885075,-944.44444444,0.00617,120]
[392441029,1761475885083,-500.0,0.00619178,120]
[392441030,1761475885092,-2000.0,0.0062,120]
[392441031,1761475885101,-944.44444444,0.00622,120]
[392441032,1761475885110,-500.0,0.00624658,120]
[392441033,1761475885118,-159.0,0.006253,120]
[392441034,1761475885128,-944.44444444,0.00627,120]
[392441035,1761475885136,-500.0,0.00630137,120]
[392441036,1761475885146,-944.44444444,0.00632,120]
[392441037,1761475885155,-500.0,0.00635616,120]
[392441038,1761475885164,-944.44444444,0.00637,120]
[392441039,1761475885174,-2000.0,0.0064,120]
[392441040,1761475885182,-200.0,0.0064,120]
[392441041,1761475885192,-3006.75963153,0.0064,120]
[392441042,1761475885201,-500.0,0.00641096,120]
[392441043,1761475885210,-944.44444444,0.00642,120]
[392441044,1761475885219,-500.0,0.00646575,120]
[392441045,1761475885228,-944.44444444,0.00647,120]
[392441046,1761475885237,-10004.35898697,0.00649,120]
[392441047,1761475885247,-4000.0,0.0065,120]
[392441048,1761475885256,-10996.01561956,0.0065,120]
[392441049,1761475885265,-1000.0,0.0065,2]
[392441050,1761475885275,-6775.50933186,0.0065,15]
[392441051,1761475885286,-944.44444444,0.00652,120]
[392441052,1761475885295,-500.0,0.00652055,120]
[392441053,1761475885305,-161.0,0.006538,120]
[392441054,1761475885315,-944.44444444,0.00657,120]
[392441055,1761475885326,-500.0,0.00657534,120]
[392441056,1761475885337,-2000.0,0.0066,120]
[392441057,1761475885348,-192.01814107,0.0066,30]
[392441058,1761475885359,-944.44444444,0.00662,120]
[392441059,1761475885370,-500.0,0.00663014,120]
[392441060,1761475885379,-4000.0,0.006664,69]
[392441061,1761475885388,-240774.81977684,0.006666,120]
[392441062,1761475885397,-944.44444444,0.00667,120]
[392441063,1761475885406,-500.0,0.00668493,120]
[392441064,1761475885416,-2267611.53919405,0.0067,120]
[392441065,1761475885425,-500.0,0.0067,90]
[392441066,1761475885434,-944.44444444,0.00672,120]
[392441067,1761475885443,-500.0,0.00673973,120]
[392441068,1761475885452,-944.44444444,0.00677,120]
[392441069,1761475885461,-16400.0,0.006788,120]
[392441070,1761475885470,-500.0,0.00679452,120]
[392441071,1761475885479,-2000.0,0.0068,120]
[392441072,1761475885488,-26391.62736953,0.0068,120]
[392441073,1761475885498,-5821.42071907,0.0068,120]
[392441074,1761475885508,-500.0,0.0068,90]
[392441075,1761475885518,-1500000.0,0.0068,120]
[392441076,1761475885527,-496.52,0.0068,120]
[392441077,1761475885536,-944.44444444,0.00682,120]
[392441078,1761475885545,-10000.0,0.00684931,120]
[392441079,1761475885554,-500.0,0.00684932,120]
[392441080,1761475885563,-2000.0,0.006852,62]
[392441081,1761475885572,-45779.98748412,0.006855,120]
[392441082,1761475885581,-944.44444444,0.00687,120]
[392441083,1761475885590,-2000.0,0.00689,62]
[392441084,1761475885599,-1500.0,0.00689,120]
[392441085,1761475885609,-20000.0,0.006899,120]
[392441086,1761475885618,-3000.0,0.0069,60]
[392441087,1761475885627,-150.0,0.0069,120]
[392441088,1761475885636,-150.0,0.0069,120]
[392441089,1761475885646,-2496.15860158,0.0069,120]
[392441090,1761475885655,-6647.00423458,0.0069,120]
[392441091,1761475885664,-500.0,0.0069,90]
[392441092,1761475885673,-500.0,0.00690411,120]
[392441093,1761475885683,-8319.84585525,0.00691781,7]
[392441094,1761475885692,-183.95080002,0.00691781,7]
[392441095,1761475885701,-2897.71454102,0.00691781,7]
[392441096,1761475885710,-27784.4509332,0.00691781,7]
[392441097,1761475885719,-944.44444444,0.00692,120]
[392441098,1761475885728,-301.05372615,0.00692,120]
[392441099,1761475885737,-9931.40704369,0.00694586,120]
[392441100,1761475885820,-500.0,0.0069589,120]
[392441101,1761475885829,-199.49148607,0.006969,120]
[392441102,1761475885839,-944.44444444,0.00697,120]
[392441103,1761475885850,-16076.3266216,0.00697241,120]
[392441104,1761475885859,-2500.0,0.00698,75]
[392441105,1761475885868,-3666.68,0.0069863,120]
[392441106,1761475885877,-3666.68,0.0069863,120]
[392441107,1761475885888,-3666.68,0.0069863,120]
[392441108,1761475885897,-3666.68,0.0069863,120]
[392441109,1761475885906,-3666.68,0.0069863,120]
[392441110,1761475885920,-3666.68,0.0069863,120]
[392441111,1761475885929,-3666.68,0.0069863,120]
[392441112,1761475885938,-3666.68,0.0069863,120]
[392441113,1761475885947,-3666.68,0.0069863,120]
[392441114,1761475885956,-3666.68,0.0069863,120]
[392441115,1761475885965,-3666.68,0.0069863,120]
[392441116,1761475885974,-3666.68,0.0069863,120]
[392441117,1761475885984,-3666.68,0.0069863,120]
[392441118,1761475885995,-3666.68,0.0069863,120]
[392441119,1761475886004,-3666.68,0.0069863,120]
[392441120,1761475886014,-3666.68,0.0069863,120]
[392441121,1761475886023,-3666.68,0.0069863,120]
[392441122,1761475886032,-3666.68,0.0069863,120]
[392441123,1761475886041,-3666.68,0.0069863,120]
[392441124,1761475886050,-3666.68,0.0069863,120]
[392441125,1761475886059,-3666.68,0.0069863,120]
[392441126,1761475886068,-3666.68,0.0069863,120]
[392441127,1761475886077,-3666.68,0.0069863,120]
[392441128,1761475886086,-3666.71855711,0.0069863,120]
[392441129,1761475886095,-9960.592041,0.006988,120]
[392441130,1761475886104,-49997.0,0.0069897,120]
[392441131,1761475886114,-1000.0,0.00699999,120]
[392441132,1761475886123,-100000.0,0.007,120]
[392441133,1761475886135,-2000.0,0.007,120]
[392441134,1761475886146,-39827.15183884,0.007,120]
[392441135,1761475886157,-5047.38562349,0.007,2]
[392441136,1761475886167,-18337.61893388,0.007,120]
[392441137,1761475886177,-1197.53668696,0.007,120]
[392441138,1761475886187,-200.0,0.007,2]
[392441139,1761475886196,-500.0,0.007,120]
[392441140,1761475886205,-22472.6332593,0.007,120]
[392441141,1761475886214,-500.0,0.0070137,120]
[392441142,1761475886223,-944.44444444,0.00702,120]
[392441143,1761475886233,-500.0,0.00706849,120]
[392441144,1761475886242,-944.44444444,0.00707,120]
[392441145,1761475886251,-944.44444444,0.00712,120]
[392441146,1761475886262,-500.0,0.00712329,120]
[392441147,1761475886272,-944.44444444,0.00717,120]
[392441148,1761475886282,-500.0,0.00717808,120]
[392441149,1761475886292,-1000.0,0.00719999,120]
[392441150,1761475886302,-2000.0,0.0072,120]
[392441151,1761475886313,-16400.0,0.0072,120]
[392441152,1761475886323,-10850.88,0.0072,120]
[392441153,1761475886334,-944.44444444,0.00722,120]
[392441154,1761475886343,-944.44444444,0.00727,120]
[392441155,1761475886353,-16400.0,0.0073,120]
[392441156,1761475886363,-10850.879999,0.0073,120]
[392441157,1761475886372,-944.44444444,0.00732,120]
[392441158,1761475886382,-944.44444444,0.00737,120]
[392441159,1761475886392,-10850.88,0.007388,120]
[392441160,1761475886402,-1000.0,0.0073999,120]
[392441161,1761475886411,-2000.0,0.0074,120]
[392441162,1761475886420,-919.9788312,0.0074,120]
[392441163,1761475886428,-200.0,0.0074,120]
[392441164,1761475886437,-944.44444444,0.00742,120]
[392441165,1761475886447,-1350.00879156,0.00742372,120]
[392441166,1761475886456,-16400.0,0.00743,120]
[392441167,1761475886465,-10850.88,0.00743,120]
[392441168,1761475886474,-2000.0,0.00744,62]
[392441169,1761475886483,-16400.0,0.00747,120]
[392441170,1761475886492,-10850.879999,0.00747,120]
[392441171,1761475886501,-1000.0,0.0074747,120]
[392441172,1761475886511,-10000.0,0.007488,120]
[392441173,1761475886522,-1000.0,0.0074999,120]
[392441174,1761475886531,-381.78609322,0.00749999,120]
[392441175,1761475886541,-1000.0,0.0075,120]
[392441176,1761475886770,-424.57292444,0.00031953,2]
[392441177,1761475886779,-169.15711,0.0003288,2]
[392441178,1761475886788,-944.97007763,0.00033843,2]
[392441179,1761475886800,-1655.91937401,0.00033843,2]
[392441180,1761475886813,-5126.06673568,0.00033843,2]
[392441181,1761475886822,-151.0,0.00034572,30]
[392441182,1761475886831,-169.15711,0.0003488,2]
[392441183,1761475886840,-151.0,0.00035239,30]
[392441184,1761475886849,-151.0,0.00035616,30]
[392441185,1761475886858,-169.15711,0.0003688,2]
[392441186,1761475886868,-169.15711,0.0003888,2]
[392441187,1761475886878,-280.84319378,0.00039452,9]
[392441188,1761475886896,-328.66250496,0.007536,81]
[392441194,1761476754129,-182.09074188,0.00032208,2]
[392441195,1761476754150,-150.0,0.00032208,2]
[392441196,1761476754169,-250.0,0.00032208,2]
[392441197,1761476754189,-568.72130505,0.000323,5]
[392441198,1761476754209,-172.08908799,0.00033313,2]
[392441199,1761476754228,-1627.65500036,0.00033377,2]
[392441200,1761476754248,-1210.37637342,0.00033414,2]
[392441201,1761476754269,-6000.0,0.00034588,2]
[392441202,1761476754293,-275.02,0.00034636,14]
[392441203,1761476754316,-151.0,0.00034636,2]
[392441204,1761476754337,-151.0,0.00034636,2]
[392441205,1761476754358,-151.0,0.00034636,2]
[392441206,1761476754377,-151.0,0.00034636,2]
[392441207,1761476754398,-151.0,0.00034636,2]
[392441208,1761476754420,-151.0,0.00034636,2]
[392441209,1761476754445,-151.0,0.00034636,2]
[392441210,1761476754465,-151.0,0.00034636,2]
[392441211,1761476754486,-151.0,0.00034636,2]
[392441212,1761476754507,-151.0,0.00034636,2]
[392441213,1761476754528,-151.0,0.00034636,2]
[392441214,1761476754548,-151.0,0.00034636,2]
[392441215,1761476754568,-151.0,0.00034636,2]
[392441216,1761476754589,-151.0,0.00034636,2]
[392441217,1761476754609,-151.0,0.00034636,2]
[392441218,1761476754629,-151.0,0.00034636,2]
[392441219,1761476754650,-151.0,0.00034636,2]
[392441220,1761476754670,-151.0,0.00034636,2]
[392441221,1761476754690,-151.0,0.00034636,2]
[392441222,1761476754711,-151.0,0.00034636,2]
[392441223,1761476754730,-17671.51,0.00034657,2]
[392441224,1761476754750,-275.02,0.0003491,14]
[392441225,1761476754769,-215.61715977,0.00035156,2]
[392441226,1761476754789,-275.02,0.00035184,14]
[392441227,1761476754810,-250.0,0.00035429,2]
[392441228,1761476754833,-250.0,0.00035429,2]
[392441229,1761476754859,-275.02,0.00035458,14]
[392441230,1761476754880,-500.0,0.00035616,9]
[392441231,1761476754901,-500.0,0.00035616,9]
[392441232,1761476754920,-210.01,0.00035616,9]
[392441233,1761476754939,-500.0,0.00035616,9]
[392441234,1761476754957,-512.47811293,0.00035616,9]
[392441235,1761476754980,-500.0,0.00035616,9]
[392441236,1761476755003,-500.0,0.00035616,9]
[392441237,1761476755024,-500.0,0.00035616,9]
[392441238,1761476755046,-183.76199719,0.00035616,2]
[392441239,1761476755065,-325.9557076,0.00035667,2]
[392441240,1761476755087,-275.03,0.00035732,14]
[392441241,1761476755112,-168.0,0.00035862,2]
[392441242,1761476755131,-500.0,0.0003589,9]
[392441243,1761476755153,-500.0,0.0003589,9]
[392441244,1761476755173,-500.0,0.0003589,9]
[392441245,1761476755193,-468.0,0.00035907,2]
[392441246,1761476755213,-233.0,0.00035978,2]
[392441247,1761476755235,-242.71687175,0.00035993,2]
[392441248,1761476755258,-165.0,0.0003605,2]
[392441249,1761476755279,-337.0,0.00036122,2]
[392441250,1761476755300,-224.0,0.00036164,9]
[392441251,1761476755319,-450.0,0.00036193,2]
[392441252,1761476755337,-379.0,0.00036265,2]
[392441253,1761476755355,-264.0,0.00036337,2]
[392441254,1761476755376,-166.66,0.00036348,30]
[392441255,1761476755394,-307.0,0.00036408,2]
[392441256,1761476755413,-500.0,0.00036452,5]
[392441257,1761476755431,-500.0,0.00036452,5]
[392441258,1761476755450,-500.0,0.00036452,5]
[392441259,1761476755473,-310.0,0.0003648,2]
[392441260,1761476755494,-215.0,0.000365,17]
[392441261,1761476755516,-476.0,0.00036552,2]
[392441262,1761476755535,-267.42,0.000366,60]
[392441263,1761476755555,-488.0,0.00036623,2]
[392441264,1761476755581,-500.0,0.00036661,15]
[392441265,1761476755600,-582.87543487,0.00036661,7]
[392441266,1761476755624,-500.0,0.00036661,15]
[392441267,1761476755645,-500.0,0.00036661,15]
[392441268,1761476755668,-162.03010089,0.00036661,15]
[392441269,1761476755693,-500.0,0.00036661,15]
[392441270,1761476755715,-500.0,0.00036661,15]
[392441271,1761476755736,-500.0,0.00036661,15]
[392441272,1761476755757,-500.0,0.00036661,15]
[392441273,1761476755778,-500.0,0.00036661,15]
[392441274,1761476755802,-500.0,0.00036661,15]
[392441275,1761476755828,-500.0,0.00036661,15]
[392441276,1761476755851,-500.0,0.00036661,15]
[392441277,1761476755874,-500.0,0.00036661,15]
[392441278,1761476755896,-500.0,0.00036661,15]
[392441279,1761476755919,-500.0,0.00036661,15]
[392441280,1761476755940,-500.0,0.00036661,15]
[392441281,1761476755963,-500.0,0.00036661,15]
[392441282,1761476755985,-500.0,0.00036661,15]
[392441283,1761476756009,-272.8038995,0.00036661,15]
[392441285,1761476826085,-285.4925231,0.00034636,2]
[392441286,1761476826104,-250.0,0.00036662,2]
[392441287,1761476826123,-1133.0,0.00036662,2]
[392441288,1761476826143,-190.0,0.00036695,2]
[392441289,1761476826162,-250.0,0.00036704,2]
[392441290,1761476826180,-1977.0,0.00036735,2]
[392441291,1761476826199,-217.0,0.00036767,2]
[392441292,1761476826217,-150.0,0.00036779,2]
[392441293,1761476826235,-900.0,0.00036809,2]
[392441294,1761476826255,-166.19,0.0003683,2]
[392441295,1761476826274,-373.0,0.00036838,2]
[392441296,1761476826295,-168.0,0.00036839,2]
[392441297,1761476826314,-758.0,0.00036882,2]
[392441298,1761476826333,-227.0,0.0003691,2]
[392441299,1761476826352,-239.0,0.00036955,2]
[392441300,1761476826371,-450.0,0.00036982,2]
[392441301,1761476826389,-320.0,0.00036997,2]
[392441302,1761476826408,-317.62936585,0.00037,5]
[392441303,1761476826427,-707.51572907,0.00037,5]
[392441304,1761476826445,-183.0,0.00037028,2]
[392441305,1761476826463,-327.0,0.00037053,2]
[392441306,1761476826482,-208.0,0.00037071,2]
[392441307,1761476826500,-1776.0,0.00037101,2]
[392441308,1761476826520,-437.0,0.00037145,2]
[392441309,1761476826539,-962.0,0.00037174,2]
[392441310,1761476826558,-195.0,0.00037218,2]
[392441311,1761476826580,-832.0,0.00037248,2]
[392441312,1761476826599,-489.0,0.00037292,2]
[392441313,1761476826618,-1456.0,0.00037321,2]
[392441314,1761476826636,-403.0,0.00037366,2]
[392441315,1761476826657,-372.0,0.00037394,2]
[392441316,1761476826678,-214.0,0.00037467,2]
[392441317,1761476826697,-1531.0,0.0003754,2]
[392441318,1761476826844,-1390.0,0.00037613,2]
[392441319,1761476826864,-1023.0,0.00037687,2]
[392441320,1761476826885,-384.0,0.0003776,2]
[392441321,1761476826904,-179.32,0.00037801,2]
[392441322,1761476826924,-644.0,0.00037833,2]
[392441323,1761476826943,-949.0,0.00037906,2]
[392441324,1761476826962,-324.0,0.00037979,2]
[392441325,1761476826982,-2500.0,0.00038047,7]
[392441326,1761476827003,-811.0,0.00038053,2]
[392441327,1761476827022,-2500.0,0.00038056,7]
[392441328,1761476827040,-2500.0,0.00038064,7]
[392441329,1761476827059,-2500.0,0.00038073,7]
[392441330,1761476827079,-2500.0,0.00038082,7]
[392441331,1761476827097,-2500.0,0.00038087,7]
[392441332,1761476827116,-2500.0,0.00038096,7]
[392441333,1761476827136,-2500.0,0.00038104,7]
[392441334,1761476827156,-2500.0,0.00038113,7]
[392441335,1761476827175,-1589.0,0.00038126,2]
[392441336,1761476827195,-1134.0,0.00038199,2]
[392441337,1761476827214,-1294.05914714,0.00038208,4]
[392441338,1761476827234,-1242.0,0.00038272,2]
[392441339,1761476827255,-500.0,0.00038344,15]
[392441340,1761476827276,-500.0,0.00038344,15]
[392441341,1761476827297,-245.19944504,0.00038344,15]
[392441342,1761476827316,-1368.0,0.00038345,2]
[392441343,1761476827336,-610.092444,0.00039915,120]
[392441344,1761476827354,-999.99,0.0004029,2]
[392441345,1761476827374,-1556.33,0.0004029,2]
[392441346,1761476827393,-4715.71,0.0004029,90]
[392441347,1761476827412,-182.51508768,0.00040313,42]
[392441348,1761476827431,-200.0,0.00040314,30]
[392441349,1761476827450,-250.0,0.00040327,2]
[392441350,1761476827469,-600.0,0.000411,2]
[392441351,1761476827488,-325.0,0.000411,2]
[392441352,1761476827507,-500.0,0.00041594,5]
[392441353,1761476827526,-500.0,0.00042142,5]
[392441354,1761476827547,-152.0,0.0004388,5]
[392441355,1761476827568,-1650.89500027,0.00044899,15]
[392441356,1761476827588,-1080.00703336,0.000449,17]
[392441357,1761476827607,-227.61536107,0.00044989,120]
[392441358,1761476827628,-500.0,0.00044989,120]
[392441359,1761476827649,-500.0,0.00044989,120]
[392441360,1761476827670,-200614.87442825,0.0004499,3]
[392441361,1761476842133,-2137.9181,0.00037996,2]
[392441362,1761476842152,-947.87,0.00043533,30]
[392441363,1761476842172,-1557.0,0.00044805,2]
[392441364,1761476842191,-1549.0,0.00044895,2]
[392441365,1761476842211,-4781.21196999,0.000449,15]
[392441366,1761476842230,-621.0,0.00044984,2]
[392441367,1761476842253,-8427.69639575,0.0004499,3]
[392441368,1761476842277,-6847.85642049,0.0004499,3]
[392441369,1761476973576,-151.0,0.00035676,2]
[392441370,1761476973598,-151.0,0.00037266,2]
[392441371,1761476973620,-1371.05547225,0.00038113,7]
[392441372,1761476973643,-250.0,0.00040104,120]
[392441373,1761476973665,-250.0,0.00040225,120]
[392441374,1761476973688,-151.0,0.00040292,30]
[392441375,1761476973710,-500.0,0.00040292,30]
[392441376,1761476973732,-151.0,0.00040292,40]
[392441377,1761476973755,-500.0,0.00040292,40]
[392441378,1761476973778,-151.0,0.00040292,41]
[392441379,1761476973800,-500.0,0.00040292,41]
[392441380,1761476973823,-151.0,0.00040292,30]
[392441381,1761476973846,-151.0,0.00040292,40]
[392441382,1761476973871,-151.0,0.00040292,41]
[392441383,1761476973894,-151.0,0.00040292,42]
[392441384,1761476973917,-207.8888015,0.00040292,30]
[392441385,1761476973947,-500.0,0.00040292,30]
[392441386,1761476973974,-500.0,0.00040292,30]
[392441387,1761476973998,-500.0,0.00040292,40]
[392441388,1761476974022,-500.0,0.00040292,41]
[392441389,1761476974046,-500.0,0.00040292,42]
[392441390,1761476974070,-411.14037448,0.00040312,42]
[392441391,1761476974093,-151.0,0.00040312,42]
[392441392,1761476974119,-500.0,0.00040312,42]
[392441393,1761476974142,-151.0,0.00040312,42]
[392441394,1761476974165,-261.2975379,0.00040312,42]
[392441395,1761476974192,-600.0,0.00040312,42]
[392441396,1761476974214,-174.61919141,0.00040312,42]
[392441397,1761476974237,-250.0,0.00040312,42]
[392441398,1761476974260,-500.0,0.00040312,42]
[392441399,1761476974282,-333.79629599,0.00040312,42]
[392441400,1761476974305,-500.0,0.00040312,42]
[392441401,1761476974327,-579.88197956,0.00040313,42]
[392441402,1761476974348,-193.31857391,0.00040313,42]
[392441403,1761476974372,-151.0,0.00040313,42]
[392441404,1761476974398,-500.0,0.00040313,42]
[392441405,1761476974420,-160.0,0.00040313,42]
[392441406,1761476974443,-151.0,0.00040313,42]
[392441407,1761476974465,-461.67526834,0.00040313,42]
[392441408,1761476974487,-600.0,0.00040313,42]
[392441409,1761476974510,-168.3888056,0.00040313,42]
[392441410,1761476974532,-250.0,0.00040313,42]
[392441411,1761476974555,-500.0,0.00040313,42]
[392441412,1761476974577,-250.0,0.00040313,42]
[392441413,1761476974600,-500.0,0.00040313,42]
[392441414,1761476974623,-151.0,0.00040313,42]
[392441415,1761476974650,-250.0,0.00040313,42]
[392441416,1761476974672,-559.19188,0.00040314,30]
[392441417,1761476974695,-162.380719,0.00040314,30]
[392441418,1761476974717,-151.0,0.00040314,30]
[392441419,1761476974740,-500.0,0.00040314,30]
[392441420,1761476974763,-160.0,0.00040314,30]
[392441421,1761476974786,-151.0,0.00040314,30]
[392441422,1761476974809,-445.202766,0.00040314,30]
[392441423,1761476974830,-600.0,0.00040314,30]
[392441424,1761476974855,-162.380719,0.00040314,30]
[392441425,1761476974881,-500.0,0.00040314,30]
[392441426,1761476974906,-250.0,0.00040314,30]
[392441427,1761476974928,-151.0,0.00040314,30]
[392441428,1761476974956,-500.0,0.00040314,30]
[392441429,1761476974978,-250.0,0.00040314,30]
[392441430,1761476975000,-500.0,0.00040314,30]
[392441431,1761476975023,-151.0,0.00040314,30]
[392441432,1761476975045,-250.0,0.00040314,30]
[392441433,1761476975067,-247.86276028,0.0004257,2]
[392441434,1761476975090,-866.0,0.00042836,2]
[392441435,1761476975112,-337.0,0.00042921,2]
[392441436,1761476975134,-1841.0,0.00043006,2]
[392441437,1761476975157,-621.0,0.00043092,2]
[392441438,1761476975179,-1460.0,0.00043177,2]
[392441439,1761476975201,-539.24,0.00043532,30]
[392441440,1761476975223,-156.587,0.00043532,30]
[392441441,1761476975380,-151.0,0.00043532,30]
[392441442,1761476975406,-500.0,0.00043532,30]
[392441443,1761476975427,-160.0,0.00043532,30]
[392441444,1761476975459,-151.0,0.00043532,30]
[392441445,1761476975487,-429.318,0.00043532,30]
[392441446,1761476975511,-600.0,0.00043532,30]
[392441447,1761476975539,-156.587,0.00043532,30]
[392441448,1761476975564,-406.6873369,0.00043532,30]
[392441449,1761476975588,-500.0,0.00043532,30]
[392441450,1761476975614,-250.0,0.00043532,30]
[392441451,1761476975639,-151.0,0.00043532,30]
[392441452,1761476975664,-151.0,0.00043532,30]
[392441453,1761476975689,-500.0,0.00043532,30]
[392441454,1761476975712,-500.0,0.00043532,30]
[392441455,1761476975735,-250.0,0.00043532,30]
[392441456,1761476975758,-151.0,0.00043532,30]
[392441457,1761476975782,-250.0,0.00043532,30]
[392441458,1761476975804,-537.6845,0.00043532,30]
[392441459,1761476975826,-250.0,0.00043532,30]
[392441460,1761476975848,-250.0,0.00043907,120]
[392441461,1761476975874,-5000.0,0.00044,120]
[392441462,1761476975896,-2515.2529455,0.000449,2]
[392441463,1761476975920,-4781.21196992,0.00044975,15]
[392441464,1761476975944,-520.0,0.00044988,120]
[392441465,1761476975967,-151.0,0.00044988,120]
[392441466,1761476975991,-151.0,0.00044988,120]
[392441467,1761476976017,-500.0,0.00044988,120]
[392441468,1761476976046,-160.0,0.00044988,120]
[392441469,1761476976069,-151.0,0.00044988,120]
[392441470,1761476976092,-414.0,0.00044988,120]
[392441471,1761476976115,-600.0,0.00044988,120]
[392441472,1761476976137,-151.0,0.00044988,120]
[392441473,1761476976159,-300.0,0.00044988,120]
[392441474,1761476976182,-500.0,0.00044988,120]
[392441475,1761476976205,-250.0,0.00044988,120]
[392441476,1761476976228,-151.0,0.00044988,120]
[392441477,1761476976251,-151.0,0.00044988,120]
[392441478,1761476976274,-500.0,0.00044988,120]
[392441479,1761476976297,-500.0,0.00044988,120]
[392441480,1761476976320,-250.0,0.00044988,120]
[392441481,1761476976342,-151.0,0.00044988,120]
[392441482,1761476976366,-151.0,0.00044988,120]
[392441483,1761476976388,-250.0,0.00044988,120]
[392441484,1761476976411,-500.0,0.00044988,120]
[392441485,1761476976437,-250.0,0.00044988,120]
[392441486,1761476976461,-500.0,0.00044989,120]
[392441487,1761476976483,-7185.83837153,0.0004499,3]
[392441488,1761476976505,-4000.0,0.0004499,20]
[392441489,1761476976527,-500.0,0.00044999,120]
[392441490,1761476976553,-159.33075274,0.00044999,120]
[392441491,1761476976576,-500.0,0.00044999,2]
[392441492,1761476976600,-1000000.0,0.00045,120]
[392441493,1761476976622,-158.12,0.00045,30]
[392441494,1761476976646,-1650.89500026,0.0004501,15]
[392441495,1761476976670,-4781.21196992,0.0004505,15]
[392441496,1761476976693,-1000000.0,0.0004505,120]
[392441497,1761476976716,-1000000.0,0.0004505,120]
[392441498,1761476976737,-507.0961297,0.00045073,10]
[392441499,1761476976758,-503.21698261,0.00045073,10]
[392441500,1761476976779,-500.0,0.00045073,10]
[392441501,1761476976802,-500.0,0.00045073,10]
[392441502,1761476976824,-370.91874192,0.00045073,10]
[392441503,1761476976846,-153.97,0.00045073,30]
[392441504,1761476976872,-1722.0,0.00045074,2]
[392441505,1761476976896,-274.0,0.0004509,2]
[392441506,1761476976919,-1650.89500026,0.00045121,15]
[392441507,1761476976941,-4781.21196992,0.00045124,15]
[392441508,1761476976963,-541.0,0.00045163,2]
[392441509,1761476976984,-182.0,0.0004518,2]
[392441510,1761476977007,-4781.21196992,0.00045199,15]
[392441511,1761476977031,-1650.89500026,0.00045233,15]
[392441512,1761476977055,-1000000.0,0.0004525,120]
[392441513,1761476977080,-1743.0,0.00045253,2]
[392441514,1761476977103,-500.0,0.00045263,120]
[392441515,1761476977126,-387.22392989,0.00045263,120]
[392441516,1761476977149,-4781.21196992,0.00045274,15]
[392441517,1761476977171,-517.26,0.000453,14]
[392441518,1761476977193,-1555.0,0.00045342,2]
[392441519,1761476977216,-1650.89500026,0.00045344,15]
[392441520,1761476977237,-153.99,0.00045347,30]
[392441521,1761476977268,-4781.21196992,0.00045349,15]
[392441522,1761476977290,-4781.21196992,0.00045423,15]
[392441523,1761476977312,-638.0,0.00045431,2]
[392441524,1761476977334,-1650.89500026,0.00045455,15]